bitfinex-derivatives/quotes_SOLF0:USTF0_20251023
["timestamp","ask_amount","ask_price","bid_price","bid_amount"]
[1761222539518,4.7618,188.98,188.88,2.87]
[1761222539519,2.49451845,188.99,188.88,2.66]
[1761222539718,2.49451845,188.98,188.89,4.88867664]
[1761222539916,2.49451845,188.98,188.9,4.88867664]
[1761222540112,2.49451845,188.98,188.91,4.88867664]
[1761222540318,2.49451845,188.98,188.92,4.88867664]
[1761222540618,2.49451845,188.98,188.88,2.66]
[1761222540810,44.64,188.97,188.89,4.89026774]
[1761222541014,4.7624,188.95,188.9,4.89026774]
[1761222541217,4.7624,188.95,188.91,4.89026774]
[1761222541419,4.7624,188.95,188.92,4.89026774]
[1761222541612,4.7624,188.95,188.88,2.66]
[1761222541809,4.7624,188.95,188.89,4.89005737]
[1761222542014,4.7624,188.95,188.9,4.89005737]
[1761222542214,4.7624,188.95,188.91,4.89005737]
[1761222542410,4.7624,188.95,188.92,4.89005737]
[1761222542719,4.7619,188.97,188.93,7.54973033]
[1761222543022,4.7619,188.97,188.89,2.66]
[1761222543222,4.7622,188.96,188.9,12.31279317]
[1761222543416,4.7622,188.96,188.91,7.54939317]
[1761222543617,4.7622,188.96,188.93,2.66]
[1761222544120,2.49451845,188.98,188.89,2.66]
[1761222544316,2.49451845,188.98,188.9,4.8882769]
[1761222544519,2.49451845,188.98,188.91,4.8882769]
[1761222544722,2.49451845,188.98,188.92,4.8882769]
[1761222544919,2.49451845,188.98,188.89,2.66]
[1761222545120,4.7627,188.94,188.9,4.88894762]
[1761222545423,2.49451845,188.95,188.86,4.7645]
[1761222545624,4.7632,188.92,188.87,7.55052773]
[1761222545818,4.7632,188.92,188.88,4.89052773]
[1761222546022,4.7632,188.92,188.89,7.55052773]
[1761222546314,4.7632,188.92,188.9,4.89052773]
[1761222546526,4.7632,188.92,188.89,2.66]
[1761222546718,4.7632,188.92,188.9,4.89101607]
[1761222546910,4.7632,188.92,188.89,2.66]
[1761222547110,4.7632,188.92,188.91,2.66]
[1761222547327,4.7632,188.92,188.91,4.89146353]
[1761222548026,2.49451845,188.96,188.92,2.66]
[1761222548221,2.49451845,188.96,188.93,5.01283312]
[1761222548412,4.7621,188.96,188.94,5.0126584]
[1761222548616,44.62,188.98,188.95,5.01201402]
[1761222548812,44.62,188.98,188.93,2.66]
[1761222549018,44.62,188.98,188.94,7.6716579]
[1761222549324,44.62,188.98,188.95,7.6716579]
[1761222549524,44.62,188.98,188.95,2.66]
[1761222550118,49.3817,188.98,188.95,2.66]
[1761222550417,44.62,188.99,188.96,5.01469999]
[1761222550620,44.62,188.99,188.96,2.66]
[1761222551023,44.62,188.99,188.91,7.4232]
[1761222551225,44.62,188.99,188.92,7.67636843]
[1761222551419,44.62,188.99,188.93,5.01636843]
[1761222551618,44.62,188.99,188.94,5.01636843]
[1761222551619,47.11451845,188.99,188.94,5.01636843]
[1761222551825,47.11451845,188.99,188.95,5.01636843]
[1761222552121,47.11451845,188.99,188.96,5.01636843]
[1761222552428,47.11451845,188.99,188.92,2.66]
[1761222552723,2.49451845,188.99,188.93,5.01855639]
[1761222553020,2.49451845,188.99,188.94,5.01855639]
[1761222553021,4.7619,188.97,188.94,5.01855639]
[1761222553227,4.7619,188.97,188.95,5.01855639]
[1761222553424,4.7619,188.97,188.96,5.01855639]
[1761222556729,6.35944592,188.97,188.96,5.01855639]
[1761222561827,1.59754592,188.97,188.96,5.01855639]
[1761222562229,46.21754592,188.97,188.96,5.01855639]
[1761222562432,46.21754592,188.97,188.96,7.67855639]
[1761222562632,1.59754592,188.97,188.96,7.67855639]
[1761222562826,44.62,188.98,188.97,2.66]
[1761222563029,44.62,188.98,188.97,7.67855639]
[1761222563837,44.62,188.98,188.97,5.01855639]
[1761222565735,44.62,188.98,188.97,7.67855639]
[1761222566125,1.59754592,189.0,188.98,2.66]
[1761222566328,46.19754592,189.04,189.0,2.66]
[1761222566528,46.19754592,189.04,189.02,2.66]
[1761222566736,44.6,189.04,189.03,5.01855639]
[1761222566935,46.19754592,189.04,189.03,5.01855639]
[1761222569238,46.19754592,189.04,189.03,7.82855639]
[1761222569443,44.6,189.04,189.03,7.82984986]
[1761222569836,44.6,189.04,189.03,5.01984986]
[1761222570540,1.59754592,189.07,189.03,5.01984986]
[1761222570738,44.6,189.07,189.05,2.81]
[1761222571041,44.6,189.07,189.06,5.01984986]
[1761222571244,44.6,189.07,189.06,7.82984986]
[1761222572538,44.6,189.07,189.02,4.7604]
[1761222572539,44.6,189.07,189.02,2.81]
[1761222572744,1.59754592,189.04,189.03,7.82154414]
[1761222575246,44.6,189.07,189.04,2.81]
[1761222575247,1.59754592,189.05,189.04,2.81]
[1761222575449,1.59754592,189.05,189.04,7.82154414]
[1761222576336,44.6,189.07,189.04,7.82154414]
[1761222576337,1.59754592,189.06,189.05,2.81]
[1761222576540,46.17754592,189.08,189.06,2.81]
[1761222576734,46.17754592,189.08,188.96,4.87211703]
[1761222576735,46.17754592,189.08,189.02,7.5705]
[1761222576941,1.59754592,189.06,189.04,2.81]
[1761222577142,1.59754592,189.06,189.05,7.81627033]
[1761222578655,44.58,189.08,189.05,7.81627033]
[1761222578847,1.59754592,189.06,189.05,2.81]
[1761222579044,1.59754592,189.06,189.05,7.8192764]
[1761222585652,1.59754592,189.06,189.02,2.81]
[1761222585852,49.3392,189.08,189.03,7.81437101]
[1761222585853,1.59754592,189.04,189.03,7.81437101]
[1761222586963,1.59754592,189.06,189.04,2.81]
[1761222587261,1.59754592,189.06,189.05,7.81437101]
[1761222587862,1.59754592,189.06,189.05,5.00437101]
[1761222588259,1.59754592,189.06,189.0,4.7609]
[1761222588452,44.58,189.08,189.01,7.81449341]
[1761222588453,1.59754592,189.03,189.01,7.81449341]
[1761222588760,1.59754592,189.02,188.97,2.81]
[1761222588961,1.59754592,188.99,188.97,2.81]
[1761222589961,1.59754592,188.99,188.98,4.7615]
[1761222590162,1.59754592,188.99,188.98,7.5715]
[1761222590364,1.59754592,189.01,188.99,2.81]
[1761222591961,1.59754592,189.01,188.99,7.5711]
[1761222592164,1.59754592,189.01,189.0,2.81]
[1761222595664,1.59754592,189.01,188.98,2.81]
[1761222595865,1.59754592,188.99,188.98,2.81]
[1761222597068,1.59754592,189.0,188.99,2.81]
[1761222599666,1.59754592,189.0,188.98,4.7615]
[1761222599857,1.59754592,189.0,188.98,7.3715]
[1761222600261,1.59754592,189.0,188.92,2.61]
[1761222600473,1.59754592,188.95,188.93,7.53247785]
[1761222600670,1.59754592,188.95,188.93,2.61]
[1761222600866,4.7611,189.0,188.93,2.61]
[1761222601070,46.13754592,188.99,188.93,2.61]
[1761222601272,1.59754592,188.99,188.93,2.61]
[1761222602076,1.59754592,188.99,188.96,2.61]
[1761222604870,1.59754592,188.97,188.93,4.7628]
[1761222605077,1.59754592,188.94,188.87,7.48211703]
[1761222605263,1.59754592,188.93,188.88,2.61]
[1761222605463,1.59754592,188.95,188.9,4.7634]
[1761222605669,1.59754592,188.95,188.91,2.61]
[1761222606268,1.59754592,188.93,188.91,2.61]
[1761222609084,1.59754592,188.93,188.84,7.48211703]
[1761222609376,1.59754592,188.88,188.84,2.61]
[1761222609574,1.59754592,188.88,188.85,2.61]
[1761222609876,1.59754592,188.9,188.85,2.61]
[1761222610485,1.59754592,188.9,188.86,2.61]
[1761222611178,1.59754592,188.9,188.86,4.7645]
[1761222611378,1.59754592,188.9,188.87,2.61]
[1761222613282,1.59754592,188.9,188.88,2.61]
[1761222615080,1.59754592,188.9,188.87,4.7642]
[1761222615276,1.59754592,188.88,188.85,7.3747]
[1761222615489,4.7632,188.92,188.86,2.61]
[1761222615675,1.59754592,188.88,188.86,2.61]
[1761222618775,2.4981409,188.91,188.86,2.61]
[1761222621885,4.7632,188.92,188.86,2.61]
[1761222622184,2.4981409,188.91,188.86,2.61]
[1761222622388,2.4981409,188.91,188.85,4.7647]
[1761222624076,4.7637,188.9,188.86,2.61]
[1761222625585,7.2618409,188.9,188.86,2.61]
[1761222627384,4.7639,188.89,188.83,4.7652]
[1761222627782,4.7639,188.89,188.84,2.86]
[1761222628088,60.43,188.96,188.85,2.86]
[1761222628089,44.54,188.96,188.85,2.86]
[1761222628291,2.4981409,188.95,188.85,2.86]
[1761222628784,44.54,188.96,188.86,2.83]
[1761222628983,44.54,188.96,188.82,4.87211703]
[1761222628984,44.54,188.96,188.89,2.83]
[1761222629384,44.54,188.96,188.92,2.83]
[1761222629778,44.54,188.96,188.91,4.7633]
[1761222629978,44.54,188.96,188.91,7.5933]
[1761222630494,2.4981409,188.94,188.82,2.83]
[1761222630687,4.7642,188.88,188.82,2.83]
[1761222630883,2.4981409,188.88,188.82,2.83]
[1761222631281,2.4981409,188.88,188.79,4.7663]
[1761222631482,2.4981409,188.85,188.78,2.83]
[1761222631891,2.4981409,188.82,188.78,2.83]
[1761222632287,44.54,188.85,188.78,2.83]
[1761222632591,7.2636409,188.83,188.78,2.83]
[1761222633684,49.305,188.85,188.78,2.83]
[1761222633888,15.89,188.96,188.78,2.83]
[1761222634089,2.4981409,188.92,188.78,2.83]
[1761222634490,4.7638,188.9,188.8,2.83]
[1761222635587,4.764,188.89,188.81,4.7657]
[1761222635790,7.2621409,188.89,188.81,4.7657]
[1761222636492,4.7643,188.88,188.81,4.7657]
[1761222637193,4.7643,188.88,188.79,4.7663]
[1761222637393,4.7643,188.88,188.79,7.5963]
[1761222637792,4.7643,188.88,188.8,4.7659]
[1761222638001,4.7645,188.87,188.8,4.7659]
[1761222638297,2.4981409,188.89,188.79,2.83]
[1761222639995,4.7648,188.86,188.79,2.83]
[1761222640291,2.4981409,188.89,188.79,7.5962]
[1761222640495,44.54,188.88,188.79,7.5962]
[1761222640895,4.7645,188.87,188.79,7.5962]
[1761222641996,4.7647,188.86,188.79,7.5962]
[1761222642192,44.54,188.88,188.79,2.83]
[1761222642997,2.4981409,188.89,188.79,2.83]
[1761222643186,15.76469366,188.94,188.79,2.83]
[1761222643187,2.4981409,188.92,188.8,2.83]
[1761222643390,44.54,188.91,188.8,2.83]
[1761222643590,4.7639,188.89,188.81,7.5957]
[1761222645394,44.54,188.91,188.83,4.7651]
[1761222645598,44.54,188.91,188.84,2.83]
[1761222646997,4.7637,188.9,188.83,4.7651]
[1761222648196,44.54,188.91,188.81,2.83]
[1761222648402,2.4981409,188.89,188.81,2.83]
[1761222649002,2.4981409,188.86,188.78,4.7665]
[1761222649196,2.4981409,188.86,188.77,2.83]
[1761222649795,2.4981409,188.86,188.73,2.4981409]
[1761222649994,2.4981409,188.83,188.73,2.83]
[1761222652101,2.4981409,188.83,188.76,2.83]
[1761222652498,2.4981409,188.83,188.77,4.7667]
[1761222652704,4.7652,188.84,188.77,7.5967]
[1761222653503,4.7655,188.83,188.77,7.5967]
[1761222653703,4.7655,188.83,188.77,2.83]
[1761222654406,4.7657,188.82,188.77,2.83]
[1761222654705,4.7657,188.82,188.75,4.7673]
[1761222655005,4.7657,188.82,188.75,7.5973]
[1761222655207,44.52,188.85,188.75,7.5973]
[1761222655208,2.4981409,188.83,188.75,2.83]
[1761222655407,2.4981409,188.8,188.72,108.51968549]
[1761222656209,2.4981409,188.8,188.73,2.83]
[1761222658907,49.286,188.81,188.74,4.7675]
[1761222659102,49.286,188.81,188.75,2.87]
[1761222659608,44.52,188.81,188.75,2.87]
[1761222659908,44.52,188.81,188.73,4.7677]
[1761222660208,2.4981409,188.8,188.72,2.87]
[1761222660404,2.4981409,188.77,188.65,2.87]
[1761222660616,2.4981409,188.74,188.65,2.87]
[1761222660920,47.0181409,188.74,188.65,2.87]
[1761222661117,2.4981409,188.71,188.61,2.87]
[1761222661518,2.4981409,188.68,188.61,2.87]
[1761222662218,2.4981409,188.73,188.61,2.87]
[1761222662423,2.4981409,188.69,188.61,2.87]
[1761222663419,32.26,188.71,188.61,2.87]
[1761222663621,33.18,188.71,188.61,2.87]
[1761222664118,2.4981409,188.72,188.63,2.87]
[1761222668025,4.7688,188.7,188.63,2.87]
[1761222668226,2.4981409,188.69,188.59,2.87]
[1761222668626,4.7692,188.68,188.59,2.87]
[1761222669124,15.89,188.72,188.55,3.79261195]
[1761222669328,2.4981409,188.63,188.55,2.87]
[1761222669625,2.4981409,188.63,188.44,272.71390404]
[1761222669626,2.4981409,188.6,188.51,2.87]
[1761222669825,4.7719,188.58,188.51,2.87]
[1761222670126,44.54,188.62,188.51,2.87]
[1761222670327,2.4981409,188.64,188.51,2.87]
[1761222670516,2.4981409,188.64,188.54,2.87]
[1761222670715,44.54,188.67,188.54,2.87]
[1761222671022,79.6792061,188.68,188.57,2.87]
[1761222671224,128.9885061,188.68,188.57,5.3681409]
[1761222671418,124.2192061,188.68,188.58,2.87]
[1761222671727,79.6792061,188.68,188.58,2.87]
[1761222671926,121.7210652,188.68,188.59,2.87]
[1761222672226,77.1810652,188.68,188.59,5.3681409]
[1761222672435,77.1810652,188.68,188.61,2.87]
[1761222673119,44.54,188.71,188.61,2.87]
[1761222673732,4.7689,188.7,188.61,2.87]
[1761222674027,2.4981409,188.69,188.56,2.87]
[1761222674332,2.4981409,188.66,188.56,2.87]
[1761222674730,4.7701,188.65,188.57,7.6417]
[1761222674927,44.54,188.71,188.58,2.87]
[1761222674928,2.4981409,188.69,188.58,2.87]
[1761222675628,4.769,188.69,188.6,4.771]
[1761222675830,4.769,188.69,188.61,2.87]
[1761222676028,4.7695,188.67,188.57,2.87]
[1761222676327,2.4981409,188.68,188.57,2.87]
[1761222676721,2.4981409,188.68,188.57,7.6418]
[1761222677127,2.4981409,188.65,188.57,2.87]
[1761222677332,2.4981409,188.65,188.51,2.4981409]
[1761222677528,2.4981409,188.65,188.52,2.87]
[1761222678035,4.7711,188.61,188.53,4.7729]
[1761222678231,44.54,188.61,188.52,2.87]
[1761222678950,1.60403503,188.59,188.52,2.87]
[1761222679439,1.60403503,188.57,188.52,2.87]
[1761222679732,1.60403503,188.58,188.52,2.87]
[1761222679925,1.60403503,188.6,188.53,2.87]
[1761222680132,1.60403503,188.62,188.55,2.87]
[1761222680631,1.60403503,188.64,188.55,2.87]
[1761222680940,1.60403503,188.64,188.57,2.87]
[1761222681242,1.60403503,188.64,188.57,7.6418]
[1761222682236,1.60403503,188.62,188.55,4.7723]
[1761222683340,1.60403503,188.6,188.55,7.6423]
[1761222683528,1.60403503,188.6,188.56,2.87]
[1761222684138,1.60403503,188.6,188.55,4.7723]
[1761222684332,1.60403503,188.6,188.55,2.87]
[1761222685534,1.60403503,188.62,188.55,2.87]
[1761222685735,1.60403503,188.62,188.56,2.87]
[1761222686342,1.60403503,188.62,188.58,2.87]
[1761222687041,15.89,188.72,188.58,2.87]
[1761222687244,92.1635131,188.73,188.6,2.87]
[1761222687245,1.60403503,188.67,188.6,2.87]
[1761222687433,1.60403503,188.63,188.54,1.60403503]
[1761222687742,60.45,188.71,188.55,2.87]
[1761222687743,1.60403503,188.61,188.55,2.87]
[1761222688636,6.37463503,188.63,188.57,2.67]
[1761222688841,44.56,188.67,188.57,2.67]
[1761222689238,4.7706,188.63,188.57,2.67]
[1761222690737,4.77,188.65,188.57,2.67]
[1761222690942,44.56,188.67,188.6,2.67]
[1761222691336,4.7698,188.66,188.6,2.67]
[1761222691942,4.77,188.65,188.59,4.7713]
[1761222692949,4.77,188.65,188.57,7.4418]
[1761222693849,4.7703,188.64,188.57,7.4418]
[1761222694849,4.7703,188.64,188.59,2.67]
[1761222695041,49.3296,188.67,188.59,2.67]
[1761222695246,44.56,188.67,188.59,2.67]
[1761222695448,44.56,188.67,188.59,7.4413]
[1761222695847,4.77,188.65,188.59,2.67]
[1761222696454,4.08205605,188.66,188.53,2.67]
[1761222696660,4.08205605,188.61,188.49,2.67]
[1761222696951,44.56,188.67,188.49,2.67]
[1761222696952,4.08205605,188.58,188.49,2.67]
[1761222697255,4.7726,188.55,188.49,2.67]
[1761222698247,44.56,188.57,188.45,2.67]
[1761222699351,4.7731,188.53,188.45,2.67]
[1761222700247,44.56,188.54,188.43,2.67]
[1761222701952,44.56,188.54,188.44,2.67]
[1761222703455,4.7736,188.51,188.44,7.445]
[1761222704657,4.7739,188.5,188.44,2.67]
[1761222705753,4.08205605,188.49,188.4,2.67]
[1761222705954,4.08205605,188.49,188.33,2.67]
[1761222706150,4.7754,188.44,188.36,2.67]
[1761222706757,4.08205605,188.45,188.37,2.67]
[1761222707060,44.56,188.46,188.32,2.67]
[1761222707252,4.7757,188.42,188.32,2.67]
[1761222707666,3.87628821,188.42,188.32,2.67]
[1761222707961,4.7763,188.4,188.32,2.67]
[1761222708357,4.08205605,188.43,188.32,2.67]
[1761222708358,49.3558,188.42,188.32,2.67]
[1761222708560,3.87298881,188.41,188.32,2.67]
[1761222708956,8.39301837,188.41,188.32,2.67]
[1761222709754,4.08205605,188.39,188.29,4.7789]
[1761222710157,7.95504486,188.39,188.29,7.4489]
[1761222710355,4.89550365,188.43,188.3,2.67]
[1761222710558,4.08205605,188.42,188.31,2.67]
[1761222710762,44.58,188.41,188.31,2.67]
[1761222711257,49.3562,188.41,188.32,2.67]
[1761222711658,4.7762,188.41,188.32,7.4481]
[1761222711861,44.58,188.41,188.27,2.67]
[1761222712257,44.58,188.41,188.33,7.4478]
[1761222714762,4.7755,188.43,188.35,4.7774]
[1761222714960,44.58,188.44,188.36,2.67]
[1761222716161,44.58,188.44,188.33,2.67]
[1761222716565,4.776,188.41,188.33,2.67]
[1761222717967,49.376,188.41,188.33,7.4478]
[1761222718170,49.376,188.41,188.34,2.67]
[1761222718369,44.6,188.41,188.28,2.67]
[1761222718666,19.97205605,188.38,188.28,2.67]
[1761222719258,3.85310589,188.37,188.28,2.67]
[1761222719463,3.85310589,188.37,188.22,0.92424142]
[1761222719464,19.74310589,188.37,188.23,2.86]
[1761222719660,4.08205605,188.34,188.23,2.86]
[1761222719963,4.08205605,188.34,188.09,408.0]
[1761222719964,4.7793,188.28,188.19,2.86]
[1761222720159,44.6,188.33,188.19,2.86]
[1761222720471,19.97205605,188.34,188.19,2.86]
[1761222720472,4.08205605,188.34,188.19,2.86]
[1761222720671,11.54,188.33,188.19,2.86]
[1761222720874,19.58,188.37,188.23,2.86]
[1761222721073,24.357,188.37,188.29,2.86]
[1761222721371,23.66205605,188.37,188.23,2.86]
[1761222721577,4.778,188.33,188.23,7.6405]
[1761222722869,4.778,188.33,188.24,2.86]
[1761222723071,4.08205605,188.3,188.19,2.86]
[1761222723276,42.84,188.29,188.19,2.86]
[1761222723877,4.779,188.3,188.21,2.86]
[1761222725282,42.32035605,188.32,188.22,2.86]
[1761222726083,4.7787,188.31,188.22,2.86]
[1761222726974,4.778,188.34,188.24,2.86]
[1761222727181,38.158,188.34,188.24,2.86]
[1761222727578,38.158,188.34,188.25,7.6399]
[1761222730070,33.38,188.34,188.26,2.86]
[1761222731780,20.78550365,188.42,188.2,2.86]
[1761222731781,4.08205605,188.35,188.2,2.86]
[1761222731983,4.08205605,188.31,188.2,2.86]
[1761222732278,4.7782,188.33,188.2,2.86]
[1761222732485,4.7782,188.33,188.23,2.86]
[1761222732874,4.7785,188.32,188.23,2.86]
[1761222733473,44.72,188.34,188.24,4.7801]
[1761222733785,44.72,188.34,188.2,2.86]
[1761222734188,44.72,188.34,188.22,2.86]
[1761222734487,4.08205605,188.36,188.22,2.86]
[1761222734677,44.74,188.35,188.22,2.86]
[1761222735082,4.7784,188.32,188.25,4.7799]
[1761222735385,4.7784,188.32,188.25,7.6399]
[1761222735576,44.74,188.35,188.2,2.86]
[1761222735776,44.74,188.35,188.24,2.86]
[1761222737490,4.08205605,188.42,188.32,2.86]
[1761222737679,48.82205605,188.42,188.32,2.86]
[1761222738090,4.08205605,188.42,188.34,2.86]
[1761222738695,48.82205605,188.5,188.38,2.86]
[1761222738887,4.08205605,188.5,188.38,2.86]
[1761222739084,4.08205605,188.46,188.29,2.86]
[1761222739586,4.08205605,188.46,188.37,4.7767]
[1761222739979,4.08205605,188.46,188.35,2.86]
[1761222740385,4.7744,188.48,188.28,70.68]
[1761222740386,4.7744,188.48,188.39,2.86]
[1761222740584,48.86205605,188.5,188.39,2.86]
[1761222740892,3.82476003,188.49,188.39,2.86]
[1761222741495,8.59886003,188.49,188.4,4.776]
[1761222741790,3.82476003,188.49,188.39,2.86]
[1761222741991,3.82476003,188.49,188.41,4.7758]
[1761222742191,44.78,188.5,188.42,2.86]
[1761222742697,44.78,188.5,188.44,4.775]
[1761222742893,44.78,188.5,188.42,2.86]
[1761222743396,44.78,188.5,188.43,7.6355]
[1761222743902,44.78,188.5,188.43,2.86]
[1761222744092,44.78,188.5,188.41,4.776]
[1761222744293,3.83194902,188.49,188.39,2.86]
[1761222744498,3.83194902,188.49,188.34,7.6376]
[1761222744499,51.53089355,188.48,188.34,7.6376]
[1761222744803,8.2388613,188.47,188.34,7.6376]
[1761222745186,4.7755,188.43,188.34,2.86]
[1761222745391,3.83194902,188.43,188.31,4.7783]
[1761222745589,8.24231828,188.43,188.3,2.72]
[1761222745893,3.83194902,188.43,188.3,2.72]
[1761222746092,4.776,188.41,188.3,2.72]
[1761222746795,4.776,188.41,188.31,4.7783]
[1761222747094,3.83194902,188.43,188.31,2.72]
[1761222747290,8.60744902,188.44,188.31,2.72]
[1761222748499,3.83194902,188.44,188.37,7.4967]
[1761222748695,6.73089355,188.53,188.37,2.72]
[1761222748994,6.73089355,188.49,188.37,2.72]
[1761222749195,6.73089355,188.41,188.23,2.64]
[1761222749387,3.83911975,188.4,188.19,6.73089355]
[1761222749587,3.83911975,188.4,188.23,2.64]
[1761222750200,8.61551975,188.4,188.3,4.7785]
[1761222750795,8.61551975,188.4,188.31,4.7783]
[1761222751101,3.83911975,188.4,188.31,2.64]
[1761222751798,3.84504988,188.4,188.31,2.64]
[1761222751999,3.84504988,188.4,188.33,4.778]
[1761222752991,44.88,188.41,188.33,7.418]
[1761222753196,3.84563996,188.4,188.33,7.418]
[1761222753393,3.84563996,188.4,188.31,4.7785]
[1761222753594,3.84563996,188.4,188.29,2.64]
[1761222753807,6.73089355,188.37,188.25,2.64]
[1761222754304,4.7774,188.36,188.25,2.64]
[1761222754605,6.73089355,188.39,188.25,2.64]
[1761222754797,3.84621529,188.38,188.25,2.64]
[1761222754992,11.50749355,188.39,188.25,2.64]
[1761222755900,3.84606061,188.38,188.25,2.64]
[1761222756101,3.84606061,188.38,188.3,4.7785]
[1761222756607,6.73089355,188.35,188.25,2.64]
[1761222757104,11.50839355,188.35,188.26,4.7796]
[1761222757604,6.73089355,188.35,188.26,4.7796]
[1761222757908,4.7779,188.34,188.26,4.7796]
[1761222759213,8.62444425,188.34,188.26,4.7796]
[1761222759411,3.84654425,188.34,188.23,4.7803]
[1761222760307,4.779,188.3,188.22,106.74953129]
[1761222760507,6.73089355,188.31,188.22,106.74953129]
[1761222760711,3.84762777,188.3,188.17,2.64]
[1761222760911,6.73089355,188.27,188.17,2.64]
[1761222761808,4.78,188.26,188.17,7.4218]
[1761222762008,44.9,188.32,188.18,2.64]
[1761222762213,3.84614648,188.31,188.2,4.7811]
[1761222764016,4.7794,188.28,188.2,4.7811]
[1761222767110,4.7798,188.26,188.2,4.7811]
[1761222767517,4.7798,188.26,188.18,7.4217]
[1761222769320,4.7798,188.26,188.19,2.64]
[1761222769821,4.7802,188.25,188.19,2.64]
[1761222771325,4.7802,188.25,188.18,4.7817]
[1761222771621,4.7802,188.25,188.14,0.92467118]
[1761222771622,4.7805,188.24,188.16,7.4222]
[1761222771822,6.73089355,188.27,188.17,2.64]
[1761222772023,44.88,188.28,188.17,2.64]
[1761222772323,60.81,188.28,188.17,2.64]
[1761222773426,4.7807,188.23,188.14,0.92467118]
[1761222773626,4.7807,188.23,188.14,3.56467118]
[1761222773829,4.7807,188.23,188.15,2.64]
[1761222774230,4.7807,188.23,188.16,4.7821]
[1761222774521,4.7809,188.22,188.16,4.7821]
[1761222774724,4.7809,188.22,188.15,2.64]
[1761222775923,4.7809,188.22,188.15,7.4224]
[1761222776426,4.7812,188.21,188.15,4.7824]
[1761222777126,4.7815,188.2,188.13,4.7831]
[1761222777622,4.7817,188.19,188.13,4.7831]
[1761222778022,4.7817,188.19,188.12,7.4231]
[1761222778424,4.7812,188.21,188.13,7.4229]
[1761222778622,60.79,188.23,188.13,7.4229]
[1761222779530,4.7817,188.19,188.13,2.64]
[1761222780024,51.59089355,188.23,188.09,2.71]
[1761222780429,51.59089355,188.23,188.06,2.71]
[1761222780430,4.7817,188.19,188.06,2.71]
[1761222780628,30.04,188.22,188.08,2.71]
[1761222781028,30.04,188.22,188.12,2.71]
[1761222781225,59.21,188.25,188.12,2.71]
[1761222781426,43.28,188.25,188.12,2.71]
[1761222781626,4.7807,188.23,188.16,4.7821]
[1761222782432,0.13717,188.31,188.17,2.71]
[1761222782631,61.33483703,188.31,188.17,2.71]
[1761222782933,6.73089355,188.3,188.17,2.71]
[1761222783126,6.73089355,188.3,188.19,2.71]
[1761222783730,4.7796,188.27,188.2,4.7812]
[1761222783936,45.07717,188.31,188.21,2.71]
[1761222784637,45.07717,188.31,188.12,62.0]
[1761222784638,49.85587,188.31,188.22,2.71]
[1761222785034,45.07717,188.31,188.16,2.71]
[1761222785430,45.07717,188.31,188.25,4.7798]
[1761222785635,0.13717,188.31,188.26,2.71]
[1761222786242,0.13717,188.31,188.23,6.73089355]
[1761222786438,44.98,188.36,188.23,6.73089355]
[1761222786439,76.92680941,188.39,188.27,2.71]
[1761222787849,76.92680941,188.39,188.29,2.71]
[1761222788037,76.92680941,188.39,188.31,2.71]
[1761222789451,4.7769,188.38,188.31,2.71]
[1761222789635,4.7769,188.38,188.18,6.53772526]
[1761222789636,76.92680941,188.39,188.17,2.71]
[1761222789837,6.73089355,188.36,188.17,2.71]